fUSD/lending_fUSD_20250826
["ID","MTS","AMOUNT","RATE_DAILY","PERIOD"]
[381395330,1756185073533,-1076.56,0.00016438,2]
[381395331,1756185073542,-400.0,0.00016438,2]
[381395332,1756185073552,-465.6,0.00016438,2]
[381395333,1756185073561,-400.0,0.00016438,2]
[381395334,1756185073570,-556.18,0.00016438,2]
[381395335,1756185073579,-511.97,0.00016438,2]
[381395336,1756185073589,-400.0,0.00016438,2]
[381395337,1756185073599,-1313.05,0.00016438,2]
[381395338,1756185073608,-1132.31,0.00016438,2]
[381395339,1756185073618,-1566.42,0.00016438,2]
[381395340,1756185073629,-400.0,0.00016438,2]
[381395341,1756185073639,-1017.27,0.00016438,2]
[381395342,1756185073648,-400.0,0.00016438,2]
[381395343,1756185073658,-400.41215319,0.00016438,2]
[381395344,1756185073669,-400.0,0.00016438,2]
[381395345,1756185073679,-687.21,0.00016438,2]
[381395346,1756185073688,-430.19,0.00016438,2]
[381395347,1756185073701,-1508.61,0.00016438,2]
[381395348,1756185073711,-592.08,0.00016438,2]
[381395349,1756185073720,-400.0,0.00016438,2]
[381395350,1756185073730,-1522.2,0.00016438,2]
[381395351,1756185073739,-1063.21,0.00016438,2]
[381395352,1756185073749,-400.0,0.00016438,2]
[381395353,1756185073759,-400.0,0.00016438,2]
[381395354,1756185073769,-1200.74,0.00016438,2]
[381395355,1756185073779,-701.64,0.00016438,2]
[381395356,1756185073790,-667.18,0.00016438,2]
[381395357,1756185073904,-1833.89,0.00016438,2]
[381395358,1756185073916,-527.92,0.00016438,2]
[381395359,1756185073926,-400.11109624,0.00016438,2]
[381395360,1756185073935,-1238.21,0.00016438,2]
[381395361,1756185073944,-400.0,0.00016438,2]
[381395362,1756185073953,-400.0,0.00016438,2]
[381395363,1756185073962,-1531.34,0.00016438,2]
[381395364,1756185073971,-839.07,0.00016438,2]
[381395365,1756185073982,-833.94,0.00016438,2]
[381395366,1756185073991,-400.0,0.00016438,2]
[381395367,1756185074000,-885.16,0.00016438,2]
[381395368,1756185074010,-401.49222735,0.00016438,2]
[381395369,1756185074019,-400.0,0.00016438,2]
[381395370,1756185074028,-708.49,0.00016438,2]
[381395371,1756185074037,-400.0,0.00016438,2]
[381395372,1756185074046,-400.0,0.00016438,2]
[381395373,1756185074056,-400.0,0.00016438,2]
[381395374,1756185074067,-819.86,0.00016438,2]
[381395375,1756185074078,-1012.23,0.00016438,2]
[381395376,1756185074088,-400.0,0.00016438,2]
[381395377,1756185074101,-400.0,0.00016438,2]
[381395378,1756185074110,-406.06,0.00016438,2]
[381395379,1756185074120,-400.0,0.00016438,2]
[381395380,1756185074132,-400.0,0.00016438,2]
[381395381,1756185074143,-1222.85,0.00016438,2]
[381395382,1756185074153,-1919.78,0.00016438,2]
[381395383,1756185074162,-400.0,0.00016438,2]
[381395384,1756185074174,-400.0,0.00016438,2]
[381395385,1756185074184,-1430.22,0.00016438,2]
[381395386,1756185074196,-510.89,0.00016438,2]
[381395387,1756185074206,-923.51,0.00016438,2]
[381395388,1756185074216,-400.0,0.00016438,2]
[381395389,1756185074226,-502.38360087,0.00016438,2]
[381395390,1756185074236,-400.0,0.00016438,2]
[381395391,1756185074245,-1631.74,0.00016438,2]
[381395392,1756185074255,-623.95,0.00016438,2]
[381395393,1756185074264,-972.66,0.00016438,2]
[381395394,1756185074273,-875.91,0.00016438,2]
[381395395,1756185074282,-678.39,0.00016438,2]
[381395396,1756185074291,-400.0,0.00016438,2]
[381395397,1756185074300,-911.93,0.00016438,2]
[381395398,1756185074310,-400.0,0.00016438,2]
[381395399,1756185074319,-772.1,0.00016438,2]
[381395400,1756185074328,-1696.44,0.00016438,2]
[381395401,1756185074337,-400.0,0.00016438,2]
[381395402,1756185074346,-400.0,0.00016438,2]
[381395403,1756185074355,-431.92,0.00016438,2]
[381395404,1756185074365,-400.0,0.00016438,2]
[381395405,1756185074374,-556.57,0.00016438,2]
[381395406,1756185074385,-1254.88,0.00016438,2]
[381395407,1756185074395,-466.82,0.00016438,2]
[381395408,1756185074404,-453.93,0.00016438,2]
[381395409,1756185074415,-400.0,0.00016438,2]
[381395410,1756185074428,-630.88,0.00016438,2]
[381395411,1756185074437,-577.23,0.00016438,2]
[381395412,1756185074447,-627.54,0.00016438,2]
[381395413,1756185074457,-400.0,0.00016438,2]
[381395414,1756185074467,-400.0,0.00016438,2]
[381395415,1756185074477,-400.0,0.00016438,2]
[381395416,1756185074487,-1171.83,0.00016438,2]
[381395417,1756185074497,-400.0,0.00016438,2]
[381395418,1756185074509,-840.99,0.00016438,2]
[381395419,1756185074519,-507.81,0.00016438,2]
[381395420,1756185074528,-728.51,0.00016438,2]
[381395421,1756185074538,-400.0,0.00016438,2]
[381395422,1756185074548,-882.97,0.00016438,2]
[381395423,1756185074558,-400.0,0.00016438,2]
[381395424,1756185074567,-870.8,0.00016438,2]
[381395425,1756185074577,-1126.11,0.00016438,2]
[381395426,1756185074586,-400.0,0.00016438,2]
[381395427,1756185074595,-400.0,0.00016438,2]
[381395428,1756185074604,-1214.94,0.00016438,2]
[381395429,1756185074614,-1417.37,0.00016438,2]
[381395430,1756185074623,-400.0,0.00016438,2]
[381395431,1756185074632,-523.1,0.00016438,2]
[381395432,1756185074642,-1284.26,0.00016438,2]
[381395433,1756185074651,-400.0,0.00016438,2]
[381395434,1756185074661,-1212.92,0.00016438,2]
[381395435,1756185074670,-1560.06,0.00016438,2]
[381395436,1756185074680,-1009.02,0.00016438,2]
[381395437,1756185074689,-619.85,0.00016438,2]
[381395438,1756185074702,-519.8,0.00016438,2]
[381395439,1756185074711,-400.0,0.00016438,2]
[381395440,1756185074720,-689.08,0.00016438,2]
[381395441,1756185074730,-473.64,0.00016438,2]
[381395442,1756185074739,-1130.17,0.00016438,2]
[381395443,1756185074749,-613.11,0.00016438,2]
[381395444,1756185074759,-547.98,0.00016438,2]
[381395445,1756185074768,-491.37,0.00016438,2]
[381395446,1756185074780,-400.0,0.00016438,2]
[381395447,1756185074789,-1204.85,0.00016438,2]
[381395448,1756185074798,-1258.14,0.00016438,2]
[381395449,1756185074808,-489.71013038,0.00016438,2]
[381395450,1756185074817,-400.0,0.00016438,2]
[381395451,1756185074827,-400.0,0.00016438,2]
[381395452,1756185074837,-400.0,0.00016438,2]
[381395453,1756185074847,-400.0,0.00016438,2]
[381395454,1756185074857,-743.23,0.00016438,2]
[381395455,1756185074868,-853.0,0.00016438,2]
[381395456,1756185074879,-1211.77,0.00016438,2]
[381395457,1756185074890,-400.0,0.00016438,2]
[381395458,1756185074901,-716.92,0.00016438,2]
[381395459,1756185074911,-1015.19,0.00016438,2]
[381395460,1756185074920,-183.962533,0.00016438,2]
[381395461,1756185074930,-1387.66,0.00016438,2]
[381395462,1756185074939,-400.0,0.00016438,2]
[381395463,1756185074948,-1320.35,0.00016438,2]
[381395464,1756185074958,-496.44,0.00016438,2]
[381395465,1756185074967,-400.61922981,0.00016438,2]
[381395466,1756185074977,-1252.32,0.00016438,2]
[381395467,1756185074987,-1766.22,0.00016438,2]
[381395468,1756185074996,-400.71604396,0.00016438,2]
[381395469,1756185075007,-1630.14,0.00016438,2]
[381395470,1756185075017,-409.0,0.00016438,2]
[381395471,1756185075026,-400.0,0.00016438,2]
[381395472,1756185075036,-343.44875,0.00016438,2]
[381395473,1756185075045,-755.04,0.00016438,2]
[381395474,1756185075055,-400.0,0.00016438,2]
[381395475,1756185075064,-426.22681547,0.00016438,2]
[381395476,1756185075075,-1037.83,0.00016438,2]
[381395477,1756185075085,-400.0,0.00016438,2]
[381395478,1756185075095,-400.0,0.00016438,2]
[381395479,1756185075107,-860.44,0.00016438,2]
[381395480,1756185075117,-400.0,0.00016438,2]
[381395481,1756185075127,-603.97,0.00016438,2]
[381395482,1756185075136,-1020.12,0.00016438,2]
[381395483,1756185075146,-400.0,0.00016438,2]
[381395484,1756185075155,-400.0,0.00016438,2]
[381395485,1756185075165,-400.0,0.00016438,2]
[381395486,1756185075177,-400.0,0.00016438,2]
[381395487,1756185075186,-400.0,0.00016438,2]
[381395488,1756185075197,-1202.85,0.00016438,2]
[381395489,1756185075208,-502.27,0.00016438,2]
[381395490,1756185075217,-518.67,0.00016438,2]
[381395491,1756185075228,-1460.199064,0.00016438,2]
[381395492,1756185075237,-658.4,0.00016438,2]
[381395493,1756185075248,-715.24,0.00016438,2]
[381395494,1756185075258,-400.0,0.00016438,2]
[381395495,1756185075268,-431.95,0.00016438,2]
[381395496,1756185075278,-778.49,0.00016438,2]
[381395497,1756185075287,-497.0,0.00016438,2]
[381395498,1756185075297,-400.0,0.00016438,2]
[381395499,1756185075307,-1377.54,0.00016438,2]
[381395500,1756185075316,-1059.93,0.00016438,2]
[381395501,1756185075326,-400.0,0.00016438,2]
[381395502,1756185075336,-153.535972,0.00016438,2]
[381395503,1756185075345,-400.33487175,0.00016438,2]
[381395504,1756185075355,-1022.45,0.00016438,2]
[381395505,1756185075365,-400.0,0.00016438,2]
[381395506,1756185075374,-773.78,0.00016438,2]
[381395507,1756185075383,-400.0,0.00016438,2]
[381395508,1756185075393,-400.0,0.00016438,2]
[381395509,1756185075402,-400.0,0.00016438,2]
[381395510,1756185075412,-806.64,0.00016438,2]
[381395511,1756185075421,-1361.84,0.00016438,2]
[381395512,1756185075431,-400.0,0.00016438,2]
[381395513,1756185075440,-552.16711988,0.00016438,2]
[381395514,1756185075450,-400.0,0.00016438,2]
[381395515,1756185075460,-158.428713,0.00016438,2]
[381395516,1756185075469,-729.3,0.00016438,2]
[381395517,1756185075479,-400.0,0.00016438,2]
[381395518,1756185075491,-801.26,0.00016438,2]
[381395519,1756185075500,-400.0,0.00016438,2]
[381395520,1756185075510,-612.91,0.00016438,2]
[381395521,1756185075519,-7354.8,0.00016438,2]
[381395522,1756185075530,-1291.65,0.00016438,2]
[381395523,1756185075539,-400.0,0.00016438,2]
[381395524,1756185075548,-400.0,0.00016438,2]
[381395525,1756185075558,-400.0,0.00016438,2]
[381395526,1756185075567,-373.69105101,0.00016438,2]
[381395527,1756185075576,-724.77,0.00016438,2]
[381395528,1756185075585,-900.48,0.00016438,2]
[381395529,1756185075595,-1042.93,0.00016438,2]
[381395530,1756185075604,-400.0,0.00016438,2]
[381395531,1756185075614,-534.68,0.00016438,2]
[381395532,1756185075624,-400.0,0.00016438,2]
[381395533,1756185075633,-1108.04,0.00016438,2]
[381395534,1756185075643,-400.0,0.00016438,2]
[381395535,1756185075653,-400.0,0.00016438,2]
[381395536,1756185075663,-400.0,0.00016438,2]
[381395537,1756185075673,-672.94,0.00016438,2]
[381395538,1756185075683,-843.77,0.00016438,2]
[381395539,1756185075692,-710.67,0.00016438,2]
[381395540,1756185075705,-713.49,0.00016438,2]
[381395541,1756185075715,-400.0,0.00016438,2]
[381395542,1756185075724,-1603.49,0.00016438,2]
[381395543,1756185075733,-1128.06,0.00016438,2]
[381395544,1756185075744,-817.81,0.00016438,2]
[381395545,1756185075756,-410.34353204,0.00016438,2]
[381395546,1756185075766,-733.84,0.00016438,2]
[381395547,1756185075777,-980.62,0.00016438,2]
[381395548,1756185075787,-400.0,0.00016438,2]
[381395549,1756185075796,-668.01,0.00016438,2]
[381395550,1756185075806,-707.29,0.00016438,2]
[381395551,1756185075816,-914.94,0.00016438,2]
[381395552,1756185075826,-4703.96,0.00016438,2]
[381395553,1756185075835,-400.0,0.00016438,2]
[381395554,1756185075844,-2766.74,0.00016438,2]
[381395555,1756185075854,-515.14,0.00016438,2]
[381395556,1756185075864,-1124.0,0.00016438,2]
[381395557,1756185075874,-500.0,0.00016438,2]
[381395558,1756185075884,-500.0,0.00016438,2]
[381395559,1756185075893,-1838.31,0.00016438,2]
[381395560,1756185075903,-500.0,0.00016438,2]
[381395561,1756185075913,-500.0,0.00016438,2]
[381395562,1756185075925,-500.0,0.00016438,2]
[381395563,1756185075935,-400.0,0.00016438,2]
[381395564,1756185075945,-500.0,0.00016438,2]
[381395565,1756185075955,-400.0,0.00016438,2]
[381395566,1756185075965,-1381.47,0.00016438,2]
[381395567,1756185075975,-500.0,0.00016438,2]
[381395568,1756185075985,-500.0,0.00016438,2]
[381395569,1756185075996,-400.0,0.00016438,2]
[381395570,1756185076008,-500.0,0.00016438,2]
[381395571,1756185076017,-708.62,0.00016438,2]
[381395572,1756185076027,-500.0,0.00016438,2]
[381395573,1756185076038,-500.0,0.00016438,2]
[381395574,1756185076047,-1148.31,0.00016438,2]
[381395575,1756185076057,-500.0,0.00016438,2]
[381395576,1756185076067,-500.0,0.00016438,2]
[381395577,1756185076076,-400.0,0.00016438,2]
[381395578,1756185076086,-500.0,0.00016438,2]
[381395579,1756185076095,-500.0,0.00016438,2]
[381395580,1756185076104,-515.12,0.00016438,2]
[381395581,1756185076114,-500.0,0.00016438,2]
[381395582,1756185076126,-500.0,0.00016438,2]
[381395583,1756185076138,-400.0,0.00016438,2]
[381395584,1756185076149,-500.0,0.00016438,2]
[381395585,1756185076159,-500.0,0.00016438,2]
[381395586,1756185076169,-717.61,0.00016438,2]
[381395587,1756185076179,-440.45366637,0.00016438,2]
[381395588,1756185076189,-1440.43,0.00016438,2]
[381395589,1756185076200,-400.89979671,0.00016438,2]
[381395590,1756185076210,-918.74,0.00016438,2]
[381395591,1756185076219,-940.48,0.00016438,2]
[381395592,1756185076229,-400.0,0.00016438,2]
[381395593,1756185076238,-400.0,0.00016438,2]
[381395594,1756185076248,-400.5848031,0.00016438,2]
[381395595,1756185076258,-1374.0,0.00016438,2]
[381395596,1756185076267,-400.0,0.00016438,2]
[381395597,1756185076277,-632.84,0.00016438,2]
[381395598,1756185076288,-1545.82,0.00016438,2]
[381395599,1756185076297,-400.0,0.00016438,2]
[381395600,1756185076307,-400.0,0.00016438,2]
[381395601,1756185076316,-400.0,0.00016438,2]
[381395602,1756185076325,-529.08,0.00016438,2]
[381395603,1756185076335,-777.79,0.00016438,2]
[381395604,1756185076344,-692.1,0.00016438,2]
[381395605,1756185076353,-309.39092317,0.00016438,2]
[381395606,1756185076363,-889.12,0.00016438,2]
[381395607,1756185076372,-522.6,0.00016438,2]
[381395608,1756185076383,-889.33,0.00016438,2]
[381395609,1756185076392,-400.0,0.00016438,2]
[381395610,1756185076403,-900.86,0.00016438,2]
[381395611,1756185076412,-400.0,0.00016438,2]
[381395612,1756185076422,-1844.71,0.00016438,2]
[381395613,1756185076432,-570.5,0.00016438,2]
[381395614,1756185076442,-400.0,0.00016438,2]
[381395615,1756185076451,-1112.62,0.00016438,2]
[381395616,1756185076461,-400.0,0.00016438,2]
[381395617,1756185076471,-698.74,0.00016438,2]
[381395618,1756185076480,-400.0,0.00016438,2]
[381395619,1756185076489,-1194.81,0.00016438,2]
[381395620,1756185076499,-646.67,0.00016438,2]
[381395621,1756185076509,-400.0,0.00016438,2]
[381395622,1756185076519,-400.0,0.00016438,2]
[381395623,1756185076528,-400.0,0.00016438,2]
[381395624,1756185076537,-400.0,0.00016438,2]
[381395625,1756185076546,-400.0,0.00016438,2]
[381395626,1756185076556,-799.24,0.00016438,2]
[381395627,1756185076565,-400.91861931,0.00016438,2]
[381395628,1756185076575,-400.0,0.00016438,2]
[381395629,1756185076585,-400.0,0.00016438,2]
[381395630,1756185076594,-639.24,0.00016438,2]
[381395631,1756185076603,-712.45,0.00016438,2]
[381395632,1756185076613,-400.0,0.00016438,2]
[381395633,1756185076622,-649.29,0.00016438,2]
[381395634,1756185076631,-694.05,0.00016438,2]
[381395635,1756185076640,-1372.88,0.00016438,2]
[381395636,1756185076649,-435.22,0.00016438,2]
[381395637,1756185076659,-835.85,0.00016438,2]
[381395638,1756185076668,-893.58,0.00016438,2]
[381395639,1756185076677,-820.22,0.00016438,2]
[381395640,1756185076687,-477.45,0.00016438,2]
[381395641,1756185076701,-1349.89,0.00016438,2]
[381395642,1756185076721,-1046.15,0.00016438,2]
[381395643,1756185076737,-1164.46,0.00016438,2]
[381395644,1756185076747,-500.0,0.00016438,2]
[381395645,1756185076758,-1159.52,0.00016438,2]
[381395646,1756185076768,-1295.44,0.00016438,2]
[381395647,1756185076778,-502.61,0.00016438,2]
[381395648,1756185076788,-400.0,0.00016438,2]
[381395649,1756185076797,-400.0,0.00016438,2]
[381395650,1756185076807,-400.0,0.00016438,2]
[381395651,1756185076816,-555.93,0.00016438,2]
[381395652,1756185076825,-467.94073441,0.00016438,2]
[381395653,1756185076835,-400.0,0.00016438,2]
[381395654,1756185076844,-400.0,0.00016438,2]
[381395655,1756185076854,-721.88,0.00016438,2]
[381395656,1756185076863,-400.0,0.00016438,2]
[381395657,1756185076872,-622.58,0.00016438,2]
[381395658,1756185076881,-1204.04,0.00016438,2]
[381395659,1756185076890,-400.0,0.00016438,2]
[381395660,1756185076899,-400.0,0.00016438,2]
[381395661,1756185076909,-400.0,0.00016438,2]
[381395662,1756185076918,-400.0,0.00016438,2]
[381395663,1756185076927,-400.0,0.00016438,2]
[381395664,1756185076936,-1147.15,0.00016438,2]
[381395665,1756185076946,-678.83,0.00016438,2]
[381395666,1756185076955,-400.41819482,0.00016438,2]
[381395667,1756185076964,-658.04,0.00016438,2]
[381395668,1756185076974,-621.48,0.00016438,2]
[381395669,1756185076983,-744.1,0.00016438,2]
[381395670,1756185076992,-877.5,0.00016438,2]
[381395671,1756185077001,-609.98,0.00016438,2]
[381395672,1756185077011,-400.0,0.00016438,2]
[381395673,1756185077020,-1008.47,0.00016438,2]
[381395674,1756185077029,-400.0,0.00016438,2]
[381395675,1756185077039,-694.05,0.00016438,2]
[381395676,1756185077048,-717.36,0.00016438,2]
[381395677,1756185077057,-782.6,0.00016438,2]
[381395678,1756185077066,-631.04,0.00016438,2]
[381395679,1756185077076,-1756.65,0.00016438,2]
[381395680,1756185077087,-646.74,0.00016438,2]
[381395681,1756185077096,-400.0,0.00016438,2]
[381395682,1756185077106,-400.0,0.00016438,2]
[381395683,1756185077116,-831.43,0.00016438,2]
[381395684,1756185077126,-698.9,0.00016438,2]
[381395685,1756185077135,-400.0,0.00016438,2]
[381395686,1756185077146,-515.96,0.00016438,2]
[381395687,1756185077155,-400.0,0.00016438,2]
[381395688,1756185077165,-758.56,0.00016438,2]
[381395689,1756185077174,-3022.36,0.00016438,2]
[381395690,1756185077183,-1152.64,0.00016438,2]
[381395691,1756185077192,-500.0,0.00016438,2]
[381395692,1756185077202,-1064.01,0.00016438,2]
[381395693,1756185077211,-500.0,0.00016438,2]
[381395694,1756185077220,-1295.84,0.00016438,2]
[381395695,1756185077229,-504.68744747,0.00016438,2]
[381395696,1756185077238,-943.07,0.00016438,2]
[381395697,1756185077248,-529.45,0.00016438,2]
[381395698,1756185077258,-1300.39,0.00016438,2]
[381395699,1756185077268,-400.0,0.00016438,2]
[381395700,1756185077277,-400.0,0.00016438,2]
[381395701,1756185077287,-400.0,0.00016438,2]
[381395702,1756185077296,-808.25,0.00016438,2]
[381395703,1756185077305,-3513.53,0.00016438,2]
[381395704,1756185077314,-855.69,0.00016438,2]
[381395705,1756185077323,-575.19,0.00016438,2]
[381395706,1756185077332,-400.0,0.00016438,2]
[381395707,1756185077341,-784.16,0.00016438,2]
[381395708,1756185077351,-400.0,0.00016438,2]
[381395709,1756185077360,-908.77,0.00016438,2]
[381395710,1756185077370,-1358.78,0.00016438,2]
[381395711,1756185077379,-400.34517023,0.00016438,2]
[381395712,1756185077390,-1462.01,0.00016438,2]
[381395713,1756185077400,-1127.95,0.00016438,2]
[381395714,1756185077409,-1578.25,0.00016438,2]
[381395715,1756185077419,-843.6,0.00016438,2]
[381395716,1756185077428,-400.0,0.00016438,2]
[381395717,1756185077437,-400.54064589,0.00016438,2]
[381395718,1756185077447,-970.12,0.00016438,2]
[381395719,1756185077456,-400.62123266,0.00016438,2]
[381395720,1756185077466,-1124.04,0.00016438,2]
[381395721,1756185077475,-816.56,0.00016438,2]
[381395722,1756185077484,-400.0,0.00016438,2]
[381395723,1756185077494,-400.0,0.00016438,2]
[381395724,1756185077503,-795.43,0.00016438,2]
[381395725,1756185077513,-400.0,0.00016438,2]
[381395726,1756185077528,-473.56,0.00016438,2]
[381395727,1756185077542,-400.0,0.00016438,2]
[381395728,1756185077558,-400.0,0.00016438,2]
[381395729,1756185077568,-400.0,0.00016438,2]
[381395730,1756185077577,-1844.62,0.00016438,2]
[381395731,1756185077586,-400.0,0.00016438,2]
[381395732,1756185077596,-352.35983991,0.00016438,2]
[381395733,1756185077605,-400.0,0.00016438,2]
[381395734,1756185077615,-400.0,0.00016438,2]
[381395735,1756185077626,-1095.05,0.00016438,2]
[381395736,1756185077635,-665.22,0.00016438,2]
[381395737,1756185077644,-1160.21,0.00016438,2]
[381395738,1756185077653,-278.76125069,0.00016438,2]
[381395739,1756185077663,-400.0,0.00016438,2]
[381395740,1756185077672,-1675.03,0.00016438,2]
[381395741,1756185077681,-6331.17,0.00016438,2]
[381395742,1756185077690,-972.38,0.00016438,2]
[381395743,1756185077701,-400.0,0.00016438,2]
[381395744,1756185077710,-848.75,0.00016438,2]
[381395745,1756185077719,-400.0,0.00016438,2]
[381395746,1756185077728,-491.84,0.00016438,2]
[381395747,1756185077738,-400.0,0.00016438,2]
[381395748,1756185077752,-1163.73,0.00016438,2]
[381395749,1756185077768,-400.0,0.00016438,2]
[381395750,1756185077778,-750.71,0.00016438,2]
[381395751,1756185077788,-400.0,0.00016438,2]
[381395752,1756185077797,-699.55,0.00016438,2]
[381395753,1756185077808,-1298.75,0.00016438,2]
[381395754,1756185077820,-1575.78,0.00016438,2]
[381395755,1756185077830,-400.0,0.00016438,2]
[381395756,1756185077839,-882.34,0.00016438,2]
[381395757,1756185077849,-736.39,0.00016438,2]
[381395758,1756185077859,-400.0,0.00016438,2]
[381395759,1756185077868,-458.94,0.00016438,2]
[381395760,1756185077878,-2238.24,0.00016438,2]
[381395761,1756185077894,-577.15,0.00016438,2]
[381395762,1756185077903,-680.8,0.00016438,2]
[381395763,1756185077914,-400.0,0.00016438,2]
[381395764,1756185077924,-500.0,0.00016438,2]
[381395765,1756185077934,-319.76270741,0.00016438,2]
[381395766,1756185077944,-400.0,0.00016438,2]
[381395767,1756185077955,-686.28,0.00016438,2]
[381395768,1756185077965,-743.51,0.00016438,2]
[381395769,1756185077976,-1110.84,0.00016438,2]
[381395770,1756185077987,-641.72,0.00016438,2]
[381395771,1756185077998,-1083.42,0.00016438,2]
[381395772,1756185078008,-936.76,0.00016438,2]
[381395773,1756185078018,-611.45,0.00016438,2]
[381395774,1756185078027,-400.7035993,0.00016438,2]
[381395775,1756185078037,-400.0,0.00016438,2]
[381395776,1756185078046,-13808.48,0.00016438,2]
[381395777,1756185078056,-749.3,0.00016438,2]
[381395778,1756185078066,-510.65,0.00016438,2]
[381395779,1756185078076,-794.26,0.00016438,2]
[381395780,1756185078085,-1535.83,0.00016438,2]
[381395781,1756185078095,-1474.16,0.00016438,2]
[381395782,1756185078296,-1216.05,0.00016438,2]
[381395783,1756185078308,-400.0,0.00016438,2]
[381395784,1756185078318,-469.77,0.00016438,2]
[381395785,1756185078328,-1339.12,0.00016438,2]
[381395786,1756185078338,-400.0,0.00016438,2]
[381395787,1756185078348,-1028.22,0.00016438,2]
[381395788,1756185078358,-1640.73,0.00016438,2]
[381395789,1756185078368,-400.0,0.00016438,2]
[381395790,1756185078378,-937.7,0.00016438,2]
[381395791,1756185078387,-400.0,0.00016438,2]
[381395792,1756185078397,-1473.64,0.00016438,2]
[381395793,1756185078407,-1061.7,0.00016438,2]
[381395794,1756185078417,-400.0,0.00016438,2]
[381395795,1756185078427,-1325.72,0.00016438,2]
[381395796,1756185078436,-400.0,0.00016438,2]
[381395797,1756185078446,-642.57,0.00016438,2]
[381395798,1756185078456,-475.12,0.00016438,2]
[381395799,1756185078466,-867.48,0.00016438,2]
[381395800,1756185078476,-488.7,0.00016438,2]
[381395801,1756185078486,-400.0,0.00016438,2]
[381395802,1756185078496,-478.64,0.00016438,2]
[381395803,1756185078507,-400.0,0.00016438,2]
[381395804,1756185078517,-1016.17,0.00016438,2]
[381395805,1756185078527,-523.34,0.00016438,2]
[381395806,1756185078537,-697.07,0.00016438,2]
[381395807,1756185078547,-457.26,0.00016438,2]
[381395808,1756185078556,-2266.04,0.00016438,2]
[381395809,1756185078566,-767.7,0.00016438,2]
[381395810,1756185078576,-1314.16,0.00016438,2]
[381395811,1756185078585,-956.49,0.00016438,2]
[381395812,1756185078594,-400.0,0.00016438,2]
[381395813,1756185078604,-1321.53,0.00016438,2]
[381395814,1756185078614,-500.0,0.00016438,2]
[381395815,1756185078624,-1113.09,0.00016438,2]
[381395816,1756185078647,-500.0,0.00016438,2]
[381395817,1756185078658,-500.0,0.00016438,2]
[381395818,1756185078668,-713.28,0.00016438,2]
[381395819,1756185078678,-500.0,0.00016438,2]
[381395820,1756185078687,-500.0,0.00016438,2]
[381395821,1756185078698,-500.0,0.00016438,2]
[381395822,1756185078709,-1403.22,0.00016438,2]
[381395823,1756185078718,-215.91744665,0.00016438,2]
[381395824,1756185078727,-400.0,0.00016438,2]
[381395825,1756185078737,-785.83,0.00016438,2]
[381395826,1756185078746,-1570.98,0.00016438,2]
[381395827,1756185078756,-400.0,0.00016438,2]
[381395828,1756185078766,-400.0,0.00016438,2]
[381395829,1756185078776,-400.0,0.00016438,2]